bitfinex-derivatives/quotes_ETHF0:USTF0_20240904
["timestamp","ask_amount","ask_price","bid_price","bid_amount"]
[1725441878653,0.41654,2401.1,2400.9,0.41656]
[1725441878853,0.41654,2401.1,2401.0,1.2]
[1725441879146,0.76499089,2401.1,2401.0,1.5604]
[1725441879946,0.76498801,2401.1,2401.0,1.5604]
[1725441880652,0.76498446,2401.1,2401.0,1.5604]
[1725441881043,0.76498443,2401.1,2401.0,1.5604]
[1725441881257,1.18929907,2401.1,2401.0,1.5604]
[1725441881445,1.73843287,2401.1,2401.0,1.5604]
[1725441881647,1.43894953,2401.1,2401.0,1.5604]
[1725441881844,1.86326539,2401.1,2401.0,1.5604]
[1725441882346,1.86325767,2401.1,2401.0,1.5604]
[1725441882748,1.86325767,2401.1,2401.0,1.9186]
[1725441883942,1.09049715,2401.1,2401.0,1.9186]
[1725441884253,1.73826217,2401.1,2401.0,1.9186]
[1725441884553,1.86305842,2401.1,2401.0,1.9186]
[1725441887242,1.09049715,2401.1,2401.0,1.9186]
[1725441887454,1.73836356,2401.1,2401.0,1.9186]
[1725441887751,1.86317998,2401.1,2401.0,1.9186]
[1725441888244,1.02237428,2401.1,2401.0,2.33515]
[1725441889554,1.02237428,2401.1,2401.0,1.9186]
[1725441889756,1.863246,2401.1,2401.0,1.9186]
[1725441890342,1.18937951,2401.1,2401.0,1.9186]
[1725441891058,1.0645606,2401.1,2401.0,1.9186]
[1725441891253,1.18940449,2401.1,2401.0,1.9186]
[1725441891448,0.54137389,2401.1,2401.0,1.9186]
[1725441891654,1.18940374,2401.1,2401.0,1.9186]
[1725441891855,0.6401857,2401.1,2401.0,1.9186]
[1725441892051,1.18940361,2401.1,2401.0,1.9186]
[1725441892254,1.18940361,2401.1,2401.0,2.33515]
[1725441892456,0.76502946,2401.1,2401.0,1.9186]
[1725441892650,1.18938958,2401.1,2401.0,1.9186]
[1725441892850,1.18938824,2401.1,2401.0,1.9186]
[1725441894757,1.18938824,2401.1,2401.0,0.7186]
[1725441894949,0.54137676,2401.1,2401.0,0.7186]
[1725441895153,1.06454666,2401.1,2401.0,0.7186]
[1725441895453,1.18939311,2401.1,2401.0,0.7186]
[1725441895649,0.41655,2401.0,2400.9,1.2]
[1725441895854,1.02120296,2401.0,2400.9,1.2]
[1725441896058,1.57042031,2401.0,2400.9,1.2]
[1725441897762,0.92239645,2401.0,2400.9,1.2]
[1725441897956,1.57043153,2401.0,2400.9,1.2]
[1725441898761,1.44557834,2401.0,2400.9,1.2]
[1725441898959,1.5704325,2401.0,2400.9,1.2]
[1725441900162,0.41657,2400.9,2400.8,0.3804]
[1725441900460,0.41659,2400.8,2400.7,3.9939]
[1725441900666,0.41662,2400.6,2400.5,0.76194532]
[1725441900864,0.22364108,2400.6,2400.5,1.96194532]
[1725441901066,1.04138,2401.0,2400.5,1.96194532]
[1725441901067,0.41661,2400.7,2400.5,1.96194532]
[1725441901272,0.41661,2400.7,2400.6,1.2]
[1725441901563,0.64023863,2400.7,2400.6,1.2]
[1725441901949,0.6402252,2400.7,2400.6,1.2]
[1725441903358,0.41658,2400.9,2400.6,5.78222]
[1725441903562,0.6402084,2400.8,2400.6,1.2]
[1725441903760,0.2236184,2400.7,2400.6,1.2]
[1725441904260,0.2236184,2400.7,2400.6,5.3656]
[1725441904564,0.41658,2400.9,2400.6,1.2]
[1725441904864,0.22361768,2400.8,2400.6,1.61662]
[1725441905166,0.41658,2400.9,2400.6,1.61662]
[1725441905467,0.22361205,2400.8,2400.6,1.61662]
[1725441905666,0.41658,2400.9,2400.6,1.61662]
[1725441905867,0.22359777,2400.8,2400.6,1.61662]
[1725441906069,0.41658,2400.9,2400.6,1.61662]
[1725441906272,0.22360103,2400.8,2400.6,1.61662]
[1725441906465,0.41658,2400.9,2400.6,1.61662]
[1725441906767,0.22359905,2400.8,2400.6,1.61662]
[1725441906975,0.41659,2400.8,2400.6,1.2]
[1725441907263,0.64020675,2400.7,2400.6,1.2]
[1725441909269,0.76504616,2400.7,2400.6,1.2]
[1725441910770,0.64020675,2400.7,2400.6,1.2]
[1725441911063,0.76504367,2400.7,2400.6,1.2]
[1725441911274,0.64020675,2400.7,2400.6,1.2]
[1725441912055,1.02120675,2400.7,2400.6,1.2]
[1725441912564,1.02121548,2400.7,2400.6,1.2]
[1725441912877,1.14605208,2400.7,2400.6,1.2]
[1725441913057,1.14605208,2400.7,2400.5,0.00624532]
[1725441913058,1.45818,2400.6,2400.5,0.00624532]
[1725441913260,1.80663208,2400.6,2400.5,1.57754532]
[1725441913570,2.23095615,2400.6,2400.5,1.57754532]
[1725441913765,0.76507208,2400.6,2400.5,1.57754532]
[1725441913961,0.34845208,2400.6,2400.5,1.99418532]
[1725441914162,0.22361548,2400.6,2400.5,1.99418532]
[1725441914467,0.22361548,2400.6,2400.5,2.36348532]
[1725441915762,0.22361548,2400.6,2400.5,6.52908532]
[1725441917867,0.22361548,2400.6,2400.5,1.94684532]
[1725441918070,0.64023548,2400.6,2400.5,1.94684532]
[1725441918267,0.64023548,2400.6,2400.5,1.57554532]
[1725441918975,0.6403269,2400.6,2400.5,1.57554532]
[1725441919571,0.76521211,2400.6,2400.5,1.20624532]
[1725441919772,2.23118877,2400.6,2400.5,1.20624532]
[1725441922378,2.23120538,2400.6,2400.5,1.20624532]
[1725441922577,0.76522872,2400.6,2400.5,1.20624532]
[1725441922773,0.41662,2400.6,2400.5,1.20624532]
[1725441922969,0.64033332,2400.6,2400.5,1.20624532]
[1725441923280,0.76522869,2400.6,2400.5,1.20624532]
[1725441925883,0.64033332,2400.6,2400.5,1.20624532]
[1725441926576,0.64033332,2400.6,2400.2,1.18379144]
[1725441926577,12.75576131,2400.6,2400.2,1.18379144]
[1725441926770,0.41671,2400.1,2399.9,0.097]
[1725441926973,0.41674,2399.9,2399.8,0.3686]
[1725441927278,0.76534131,2399.9,2399.8,0.3686]
[1725441927575,0.64045332,2399.9,2399.8,0.3686]
[1725441928376,0.41674,2399.9,2399.8,0.3686]
[1725441928979,0.00624532,2400.1,2399.8,0.3686]
[1725441929181,0.00624532,2400.1,2400.0,0.41672]
[1725441931981,0.00624532,2400.1,2400.0,4.58312]
[1725441934675,0.4553,2400.7,2400.0,4.58312]
[1725441934676,0.87192,2400.7,2400.4,0.41665]
[1725441934874,0.64026982,2400.6,2400.5,1.0838]
[1725441936075,0.41662,2400.6,2400.5,1.0838]
[1725441936476,0.86394968,2400.6,2400.5,1.0838]
[1725441938181,0.86394968,2400.6,2400.3,1.61666]
[1725441938383,0.41664,2400.5,2400.3,1.61666]
[1725441940278,0.3789,2400.4,2400.3,1.61666]
[1725441942987,0.41664,2400.5,2400.3,1.61666]
[1725441944790,0.41663,2400.6,2400.3,1.61666]
[1725441944985,0.22376761,2400.5,2400.4,0.41665]
[1725441945293,0.22376761,2400.5,2400.3,1.61666]
[1725441945594,0.41663,2400.6,2400.4,0.41665]
[1725441945788,4.13463116,2400.8,2400.6,0.41661]
[1725441945987,0.92683116,2400.8,2400.7,0.7498]
[1725441946292,1.34342116,2400.8,2400.7,0.7498]
[1725441946497,5.73277277,2400.8,2400.7,0.7498]
[1725441946793,5.85768232,2400.8,2400.7,0.7498]
[1725441947297,6.28232747,2400.8,2400.7,0.7498]
[1725441948996,5.36174163,2400.8,2400.7,0.7498]
[1725441949697,4.58843532,2400.8,2400.7,0.7498]
[1725441949884,5.23687767,2400.8,2400.7,0.7498]
[1725441950089,0.41662,2400.6,2400.5,0.80294]
[1725441950391,0.64042572,2400.6,2400.5,0.3863]
[1725441950793,1.02012572,2400.6,2400.5,0.80294]
[1725441952505,0.22380572,2400.6,2400.5,0.80294]
[1725441953606,0.78622,2400.7,2400.5,0.80294]
[1725441953806,0.44766662,2400.6,2400.5,0.80294]
[1725441954308,0.86428662,2400.6,2400.5,0.3863]
[1725441955304,0.41664,2400.5,2400.3,1.564]
[1725441955512,0.41665,2400.4,2400.3,0.364]
[1725441955806,0.41665,2400.4,2400.1,4.82451]
[1725441955807,0.22383295,2400.4,2400.1,4.82451]
[1725441956003,1.02231295,2400.3,2400.1,5.21281]
[1725441956205,0.41669,2400.2,2400.1,4.7961]
[1725441956509,0.79848,2400.3,2400.1,5.21281]
[1725441958016,0.79848,2400.3,2400.1,2.00501]
[1725441958212,0.79848,2400.3,2400.1,5.21281]
[1725441959305,1.14441915,2400.6,2400.2,1.2]
[1725441959511,0.22380818,2400.5,2400.4,0.41665]
[1725441959717,0.22380818,2400.5,2400.4,1.61665]
[1725441960612,0.22380818,2400.5,2400.4,1.2]
[1725441960810,0.22380818,2400.5,2400.4,1.61665]
[1725441962421,0.34879406,2400.5,2400.4,1.61665]
[1725441962611,0.22389635,2400.5,2400.4,1.61665]
[1725441963012,0.42283532,2400.8,2400.6,0.41661]
[1725441963213,0.4166,2400.7,2400.5,1.16333]
[1725441963422,1.06529365,2400.7,2400.5,1.16333]
[1725441963617,0.84139439,2400.7,2400.5,1.16333]
[1725441963817,0.64882487,2400.6,2400.5,1.16333]
[1725441964023,0.22393566,2400.6,2400.5,1.16333]
[1725441964521,0.34892831,2400.6,2400.5,1.16333]
[1725441965111,0.22393566,2400.6,2400.5,1.16333]
[1725441965315,0.3489504,2400.6,2400.5,1.16333]
[1725441966014,0.4166,2400.7,2400.5,1.16333]
[1725441966216,0.64913356,2400.6,2400.5,1.16333]
[1725441966421,0.77421466,2400.6,2400.5,1.16333]
[1725441967522,0.34912633,2400.6,2400.5,1.16333]
[1725441967717,0.22404523,2400.6,2400.5,1.16333]
[1725441967914,0.22404523,2400.6,2400.5,1.55533]
[1725441969523,0.4166,2400.7,2400.6,0.41662]
[1725441969711,0.64067117,2400.7,2400.6,0.41662]
[1725441969917,1.19090525,2400.7,2400.6,0.41662]
[1725441970513,0.77430525,2400.7,2400.6,0.41662]
[1725441970923,1.19090525,2400.7,2400.5,1.55533]
[1725441971122,0.22407117,2400.6,2400.5,1.55533]
[1725441972821,0.4166,2400.7,2400.5,1.55533]
[1725441973015,0.4166,2400.7,2400.6,0.41662]
[1725441973324,0.64066586,2400.7,2400.6,0.41662]
[1725441973528,1.0657834,2400.7,2400.6,0.41662]
[1725441973727,1.41493583,2400.7,2400.6,0.41662]
[1725441973916,1.54002426,2400.7,2400.6,0.41662]
[1725441975819,1.12342426,2400.7,2400.6,0.41662]
[1725441976226,1.12336804,2400.7,2400.6,0.41662]
[1725441976531,0.99827961,2400.7,2400.6,0.41662]
[1725441979531,0.3491585,2400.7,2400.6,0.41662]
[1725441979731,0.99829741,2400.7,2400.6,0.41662]
[1725441980222,1.12337357,2400.7,2400.6,0.41662]
[1725441981334,0.77421507,2400.7,2400.6,0.41662]
[1725441983139,0.12507616,2400.7,2400.6,0.41662]
[1725441983432,0.42508087,2400.7,2400.6,0.41662]
[1725441983633,0.64911965,2400.7,2400.5,2.75532]
[1725441983833,0.64911965,2400.6,2400.5,2.75532]
[1725441984228,0.77419374,2400.6,2400.5,2.75532]
[1725441988934,0.34911287,2400.6,2400.5,2.75532]
[1725441989140,0.33870403,2400.6,2400.5,13.96252]
[1725441989342,0.00624532,2400.8,2400.7,0.4166]
[1725441989638,0.23028954,2400.8,2400.7,5.91665883]
[1725441989828,0.23028954,2400.8,2400.7,2.70885883]
[1725441990024,0.23028954,2400.8,2400.7,1.09225883]
[1725441990233,0.23028954,2400.8,2400.7,0.4166]
[1725441991346,0.23028954,2400.8,2400.6,2.70886883]
[1725441991641,0.22404998,2400.7,2400.6,1.2]
[1725441992236,0.78363532,2400.8,2400.6,1.2]
[1725441992439,0.2239697,2400.7,2400.6,1.2]
[1725441992943,0.22395919,2400.7,2400.6,1.2]
[1725441994833,0.22395919,2400.7,2400.6,1.61662]
[1725441995241,0.00624532,2400.8,2400.7,0.4166]
[1725441996045,0.23020068,2400.8,2400.7,0.4166]
[1725441998834,0.00624532,2400.8,2400.7,0.4166]
[1725441999348,0.23025293,2400.8,2400.7,0.4166]
[1725442001847,0.23025293,2400.8,2400.6,1.6166]
[1725442002051,0.00624532,2400.8,2400.6,1.6166]
[1725442002353,0.22404491,2400.7,2400.5,3.84757883]
[1725442002649,0.42283532,2400.8,2400.6,0.41662]
[1725442002850,0.22403938,2400.7,2400.6,0.41662]
[1725442004743,0.22403938,2400.7,2400.6,1.61662]
[1725442005350,0.42283532,2400.8,2400.6,1.61662]
[1725442005558,0.22407181,2400.7,2400.6,1.61662]
[1725442006556,0.34915191,2400.7,2400.6,1.61662]
[1725442007451,0.76575191,2400.7,2400.5,1.55533]
[1725442007654,0.22407181,2400.6,2400.5,2.75533]
[1725442008044,0.22407181,2400.7,2400.5,2.75533]
[1725442008246,0.22407181,2400.6,2400.5,2.75533]
[1725442008443,0.42283532,2400.8,2400.6,0.41662]
[1725442008755,0.42283532,2400.8,2400.5,2.75533]
[1725442008949,0.64926986,2400.7,2400.5,2.75533]
[1725442009149,0.22408952,2400.6,2400.5,2.75533]
[1725442009643,0.22408812,2400.6,2400.5,2.75533]
[1725442013354,0.34918037,2400.6,2400.5,2.75533]
[1725442014158,0.22408812,2400.6,2400.5,2.75533]
[1725442014456,0.34918102,2400.6,2400.5,2.75533]
[1725442014861,0.22408812,2400.6,2400.5,2.75533]
[1725442015062,0.22409779,2400.6,2400.5,2.75533]
[1725442015256,0.12509181,2400.6,2400.5,2.75533]
[1725442015458,0.3491896,2400.6,2400.5,2.75533]
[1725442017161,0.3491896,2400.6,2400.5,2.3387]
[1725442017762,0.77437897,2400.6,2400.5,2.75534]
[1725442018256,0.12509181,2400.6,2400.5,2.75534]
[1725442018563,0.64929577,2400.6,2400.5,2.75534]
[1725442018951,0.77439337,2400.6,2400.5,2.75534]
[1725442020554,0.77439337,2400.6,2400.5,2.3387]
[1725442020555,0.34919865,2400.6,2400.5,2.3387]
[1725442020755,1.1909272,2400.6,2400.5,2.3387]
[1725442020955,0.1250976,2400.6,2400.5,2.3387]
[1725442021269,1.0656295,2400.6,2400.5,1.1387]
[1725442021460,1.0656295,2400.6,2400.5,0.754]
[1725442021654,1.56507006,2400.6,2400.5,0.754]
[1725442022152,0.77405006,2400.6,2400.5,2.37064]
[1725442022969,0.3490422,2400.6,2400.5,2.37064]
[1725442023560,0.12504056,2400.6,2400.5,2.37064]
[1725442023759,0.77398827,2400.6,2400.5,2.37064]
[1725442023964,0.64892139,2400.6,2400.5,2.37064]
[1725442024260,0.77394317,2400.6,2400.5,2.37064]
[1725442024868,0.77394317,2400.6,2400.5,1.954]
[1725442025164,0.77394317,2400.6,2400.5,2.37064]
[1725442026048,0.77394317,2400.6,2400.5,1.954]
[1725442026863,0.77394317,2400.6,2400.5,2.37064]
[1725442027557,0.77394317,2400.6,2400.5,1.954]
[1725442027757,1.19056317,2400.6,2400.5,1.954]
[1725442028963,0.77394317,2400.6,2400.5,1.954]
[1725442029868,1.19056317,2400.6,2400.5,1.954]
[1725442030160,0.6406554,2400.6,2400.5,1.954]
[1725442030370,1.06572286,2400.6,2400.5,1.954]
[1725442030553,0.6406554,2400.6,2400.5,1.954]
[1725442030755,1.19078496,2400.6,2400.5,1.954]
[1725442031554,1.31584573,2400.6,2400.5,1.954]
[1725442031755,1.19078363,2400.6,2400.5,1.954]
[1725442032459,0.77416363,2400.6,2400.5,2.37064]
[1725442032763,0.77426058,2400.6,2400.5,2.37064]
[1725442033164,0.34909617,2400.6,2400.5,2.37064]
[1725442033464,0.12506077,2400.6,2400.5,2.37064]
[1725442033666,0.77425669,2400.6,2400.5,2.37064]
[1725442035362,0.77425669,2400.6,2400.5,1.954]
[1725442035767,0.77425669,2400.6,2400.5,2.37064]
[1725442036066,0.77425669,2400.6,2400.5,1.954]
[1725442036656,0.00624532,2400.8,2400.7,0.4166]
[1725442036858,0.00624532,2400.8,2400.7,3.6244]
[1725442037059,0.00624532,2400.8,2400.7,8.88225883]
[1725442037270,0.00624532,2400.8,2400.7,14.88225883]
[1725442037476,0.00624532,2400.8,2400.7,9.97092724]
[1725442038174,0.00624532,2400.8,2400.7,7.79]
[1725442038361,0.00624532,2400.8,2400.7,3.6244]
[1725442039172,0.00624532,2400.8,2400.7,5.260718]
[1725442039673,0.00624532,2400.8,2400.7,0.4166]
[1725442040566,0.23017547,2400.8,2400.7,0.4166]
[1725442041765,0.23017547,2400.8,2400.6,1.98791]
[1725442041969,0.00624532,2400.8,2400.6,1.98791]
[1725442044662,0.00624532,2400.8,2400.7,1.6166]
[1725442045064,0.23019131,2400.8,2400.7,1.6166]
[1725442045971,0.23019131,2400.8,2400.6,0.3713]
[1725442045972,0.23019131,2400.8,2400.6,1.98791]
[1725442046161,0.22395088,2400.7,2400.6,1.98791]
[1725442046769,0.22395088,2400.7,2400.5,0.754]
[1725442046984,0.22395088,2400.7,2400.3,0.3774]
[1725442046985,0.41665,2400.5,2400.3,0.3774]
[1725442047168,0.22395088,2400.4,2400.3,1.99407]
[1725442047568,0.22395088,2400.5,2400.3,1.99407]
[1725442047767,0.22395088,2400.4,2400.3,1.99407]
[1725442048069,0.22395088,2400.5,2400.3,1.99407]
[1725442048272,0.00624532,2400.8,2400.6,0.41661]
[1725442048478,0.00624532,2400.8,2400.7,0.3681]
[1725442048672,0.13116051,2400.8,2400.7,0.3681]
[1725442048977,0.78016224,2400.8,2400.7,0.3681]
[1725442049680,0.78016657,2400.8,2400.7,0.3681]
[1725442050564,1.07183705,2400.8,2400.7,0.3681]
[1725442050768,5.73926159,2400.8,2400.5,0.77773]
[1725442050969,0.41654,2401.1,2400.8,0.41658]
[1725442051173,0.41654,2401.1,2400.9,0.7498]
[1725442053277,0.41654,2401.1,2400.9,1.16637]
[1725442053670,0.41654,2401.1,2400.9,0.7498]
[1725442054079,0.41654,2401.1,2400.9,1.1183]
[1725442054280,0.41654,2401.1,2400.9,1.53487]
[1725442054879,0.41654,2401.1,2400.9,1.1183]
[1725442056378,0.41654,2401.1,2400.9,1.53486]
[1725442056878,0.41655,2401.0,2400.9,1.53486]
[1725442057181,0.41654,2401.1,2400.9,1.53486]
[1725442057391,0.41654,2401.1,2400.9,1.1183]
[1725442057574,0.41654,2401.1,2400.9,1.53486]
[1725442058988,0.41655,2401.0,2400.9,0.3595]
[1725442059383,3.62435,2401.0,2400.9,0.3595]
[1725442060084,3.74924479,2401.0,2400.9,0.3595]
[1725442060386,3.62435,2401.0,2400.9,0.77607]
[1725442060884,3.62435,2401.0,2400.9,0.3595]
[1725442061186,0.41657,2400.9,2400.8,0.80337]
[1725442061678,0.78847,2400.9,2400.8,0.80337]
[1725442062084,0.41659,2400.8,2400.7,0.75234532]
[1725442062386,0.41659,2400.8,2400.7,0.36794532]
[1725442062579,0.80979,2400.8,2400.7,0.78454532]
[1725442063484,0.80979,2400.8,2400.7,0.36794532]
[1725442063784,0.3932,2400.8,2400.7,0.36794532]
[1725442066486,0.80979,2400.8,2400.7,0.36794532]
[1725442066887,1.03361484,2400.8,2400.7,0.36794532]
[1725442067279,1.03361484,2400.8,2400.7,0.00624532]
[1725442067485,7.56558863,2400.8,2400.7,0.00624532]
[1725442067698,13.99049954,2400.8,2400.7,0.00624532]
[1725442067989,7.99049954,2400.8,2400.7,0.00624532]
[1725442068188,7.21686,2400.8,2400.7,0.00624532]
[1725442068391,7.64179087,2400.8,2400.7,0.00624532]
[1725442068579,7.99059561,2400.8,2400.7,0.00624532]
[1725442068780,7.76673006,2400.8,2400.7,0.00624532]
[1725442069190,7.86566581,2400.8,2400.7,0.00624532]
[1725442069490,7.99060323,2400.8,2400.7,0.00624532]
[1725442070894,1.58353323,2400.8,2400.7,0.00624532]
[1725442071286,1.58353323,2400.8,2400.7,0.37744532]
[1725442071579,1.58346531,2400.8,2400.7,0.37744532]
[1725442074188,1.58346531,2400.8,2400.7,0.79404532]
[1725442074589,0.80979,2400.8,2400.7,0.79404532]
[1725442074895,0.80979,2400.8,2400.7,0.37744532]
[1725442074896,1.45852004,2400.8,2400.7,0.37744532]
[1725442075083,1.58343413,2400.8,2400.7,0.37744532]
[1725442078089,1.45852004,2400.8,2400.7,0.37744532]
[1725442078288,1.58343536,2400.8,2400.7,0.37744532]
[1725442078491,1.58342438,2400.8,2400.7,0.37744532]
[1725442078790,1.58342438,2400.8,2400.7,0.79404532]
[1725442079199,0.93470532,2400.8,2400.7,1.18064532]
[1725442079394,1.58342035,2400.8,2400.7,1.18064532]
[1725442080897,1.58342035,2400.8,2400.7,0.76404532]
[1725442081097,1.58342035,2400.8,2400.7,1.18064532]
[1725442082094,0.74195177,2400.8,2400.7,1.18064532]
[1725442082299,1.16681814,2400.8,2400.7,1.18064532]
[1725442082494,0.22383645,2400.8,2400.7,1.18064532]
[1725442082997,0.34873471,2400.8,2400.7,1.18064532]
[1725442083198,0.34872407,2400.8,2400.7,1.18064532]
[1725442083401,0.34872676,2400.8,2400.7,1.18064532]
[1725442086104,4.92647936,2401.2,2401.0,0.41655]
[1725442086407,4.92647936,2401.2,2401.1,0.3733]
[1725442086408,4.87504936,2401.2,2401.1,0.3733]
[1725442086597,4.37924722,2401.2,2401.1,0.3733]
[1725442086791,4.60302439,2401.2,2401.1,0.7289]
[1725442086997,4.72788769,2401.2,2401.1,0.7289]
[1725442087403,4.49584682,2401.2,2401.1,0.7289]
[1725442087603,4.72790212,2401.2,2401.1,0.7289]
[1725442087806,4.72790525,2401.2,2401.1,0.7289]
[1725442089698,3.95446352,2401.2,2401.1,0.7289]
[1725442089999,4.22561625,2401.2,2401.1,1.14543]
[1725442090299,3.80083756,2401.2,2401.1,1.50013]
[1725442090503,3.92569704,2401.2,2401.1,1.50013]
[1725442090900,3.56059704,2401.2,2401.1,1.50013]
[1725442091107,0.22793756,2401.2,2401.1,2.70013]
[1725442091308,0.00416352,2401.2,2401.1,2.70013]
[1725442097209,3.2078,2401.9,2401.6,0.41644]
[1725442097403,3.2078,2401.9,2401.1,15.126058]
[1725442097404,1.2,2401.8,2401.5,1.2]
[1725442097604,1.03222755,2401.7,2401.4,0.41647]
[1725442097807,0.3603,2401.6,2401.3,1.2]
[1725442098026,0.7271,2401.6,2401.5,1.61646]
[1725442098211,0.7271,2401.6,2401.5,0.41646]
[1725442098410,0.7271,2401.6,2401.5,1.61646]
[1725442100118,0.7271,2401.6,2401.5,1.2]
[1725442100514,0.7271,2401.6,2401.5,1.5727]
[1725442102406,0.7271,2401.6,2401.5,1.2]
[1725442102607,3.9349,2401.6,2401.3,0.3765]
[1725442102811,0.41648,2401.5,2401.3,0.3765]
[1725442104217,0.41648,2401.5,2401.3,1.5765]
[1725442104813,0.3668,2401.6,2401.4,0.41648]
[1725442105012,0.3668,2401.6,2401.4,0.80378]
[1725442106821,0.3668,2401.6,2401.3,1.99299]
[1725442106822,0.78325,2401.6,2401.3,1.99299]
[1725442107029,0.78325,2401.6,2401.4,0.3573]
[1725442107517,0.78325,2401.6,2401.5,1.2]
[1725442108323,3.99105,2401.6,2401.2,0.3582]
[1725442108621,0.41651,2401.3,2401.1,1.5921]
[1725442108831,0.3775,2401.2,2401.1,2.00863]
[1725442109331,0.3775,2401.2,2401.0,1.5857]
[1725442109617,0.3699,2401.1,2401.0,1.5857]
[1725442110222,0.3699,2401.1,2401.0,2.00225]
[1725442110428,0.3699,2401.1,2401.0,1.5857]
[1725442110814,0.78643,2401.1,2401.0,1.5857]
[1725442111014,0.3699,2401.1,2401.0,1.5857]
[1725442112521,0.3699,2401.1,2401.0,2.00225]
[1725442115120,0.3699,2401.1,2401.0,1.5857]
[1725442115809,0.3699,2401.1,2401.0,2.00225]
[1725442116811,0.3775,2401.2,2401.1,0.41653]
[1725442117011,0.7336,2401.5,2401.2,0.41651]
[1725442117218,1.51098,2401.5,2401.2,0.41651]
[1725442117924,1.0945,2401.5,2401.1,1.5763]
[1725442118123,1.0945,2401.5,2401.3,0.4165]
[1725442118626,1.0945,2401.5,2401.4,0.7453]
[1725442119123,0.728,2401.5,2401.4,0.7453]
[1725442123318,0.728,2401.5,2401.4,1.1316]
[1725442123726,0.9517221,2401.5,2401.4,1.1316]
[1725442124222,0.728,2401.5,2401.4,1.1316]
[1725442124430,0.95172169,2401.5,2401.4,1.1316]
[1725442124724,0.728,2401.5,2401.4,1.1316]
[1725442124917,0.9517167,2401.5,2401.4,1.1316]
[1725442125118,0.728,2401.5,2401.4,1.1316]
[1725442125320,0.9517209,2401.5,2401.4,1.1316]
[1725442126116,0.728,2401.5,2401.4,1.1316]
[1725442126326,0.9517228,2401.5,2401.4,1.1316]
[1725442128032,0.22372047,2401.5,2401.4,1.54808]
[1725442128216,0.59972047,2401.5,2401.4,1.54808]
[1725442128423,1.01618047,2401.5,2401.4,1.1316]
[1725442128622,1.01618047,2401.5,2401.3,0.41649]
[1725442128828,0.22372047,2401.4,2401.3,0.41649]
[1725442129629,0.22372047,2401.4,2401.2,0.3619]
[1725442129829,0.64022047,2401.3,2401.2,0.3619]
[1725442130130,0.76506461,2401.3,2401.1,1.16973]
[1725442130318,0.59972047,2401.2,2401.1,1.54513]
[1725442130922,0.59972047,2401.2,2401.1,1.1286]
[1725442131234,0.79252,2401.2,2401.1,1.1286]
[1725442131439,1.01626887,2401.2,2401.1,1.1286]
[1725442133131,0.59974887,2401.2,2401.1,1.54513]
[1725442133526,0.72459351,2401.2,2401.1,1.54513]
[1725442133837,0.59974887,2401.2,2401.1,1.1286]
[1725442134835,0.59974639,2401.2,2401.1,1.1286]
[1725442135229,0.72458288,2401.2,2401.1,1.1286]
[1725442135435,0.84941994,2401.2,2401.1,1.1286]
[1725442138039,0.50083649,2401.2,2401.1,1.1286]
[1725442138242,0.72458066,2401.2,2401.1,1.1286]
[1725442138536,0.84941622,2401.2,2401.1,1.1286]
[1725442139538,0.72458066,2401.2,2401.1,1.1286]
[1725442139738,0.72458066,2401.2,2401.1,1.54513]
[1725442139940,0.84941821,2401.2,2401.1,1.54513]
[1725442140640,0.84941821,2401.2,2401.1,1.1286]
[1725442140843,0.47342209,2401.2,2401.1,1.54513]
[1725442141035,0.12483649,2401.2,2401.1,2.74513]
[1725442141637,0.34856917,2401.2,2401.1,2.74513]
[1725442142546,0.12483649,2401.2,2401.1,2.74513]
[1725442143042,0.41648,2401.4,2401.2,0.41651]
[1725442143244,0.22372538,2401.3,2401.2,0.41651]
[1725442143751,0.41648,2401.4,2401.2,0.41651]
[1725442144049,0.2237264,2401.3,2401.2,0.41651]
[1725442144731,0.34855008,2401.3,2401.2,0.41651]
[1725442145339,0.2237264,2401.3,2401.2,0.41651]
[1725442145647,0.34854833,2401.3,2401.2,0.41651]
[1725442146236,0.12482193,2401.3,2401.2,0.41651]
[1725442146442,0.34854833,2401.3,2401.2,0.41651]
[1725442147040,0.41653,2401.1,2401.0,1.08823254]
[1725442147233,0.41655,2401.0,2400.8,1.85593254]
[1725442147440,0.41655,2401.0,2400.8,0.7677]
[1725442147738,0.59155851,2400.9,2400.8,0.3881]
[1725442148039,0.71644125,2400.9,2400.8,0.3881]
[1725442149742,0.71643858,2400.9,2400.8,0.3881]
[1725442149948,0.71643858,2400.9,2400.7,3.59034532]
[1725442150141,1.4994409,2400.8,2400.7,3.59034532]
[1725442150341,1.4994409,2400.8,2400.7,3.21404532]
[1725442150541,1.27568239,2400.8,2400.7,3.21404532]
[1725442150744,1.15079,2400.8,2400.7,3.21404532]
[1725442151045,1.37460962,2400.8,2400.7,0.00624532]
[1725442151350,1.4995056,2400.8,2400.7,0.00624532]
[1725442153848,1.27568598,2400.8,2400.7,0.00624532]
[1725442154149,1.37462125,2400.8,2400.7,0.00624532]
[1725442154339,1.49952621,2400.8,2400.7,0.00624532]
[1725442154946,1.62443124,2400.8,2400.7,0.00624532]
[1725442155137,1.40060033,2400.8,2400.7,0.00624532]
[1725442155342,1.6244389,2400.8,2400.7,0.00624532]
[1725442156150,1.49953387,2400.8,2400.7,0.00624532]
[1725442156447,1.2756953,2400.8,2400.7,0.00624532]
[1725442156653,1.62443625,2400.8,2400.7,0.00624532]
[1725442157343,1.49952899,2400.8,2400.7,0.00624532]
[1725442161256,1.2756953,2400.8,2400.7,0.00624532]
[1725442161460,1.49952661,2400.8,2400.7,0.00624532]
[1725442162353,1.2756953,2400.8,2400.7,0.00624532]
[1725442162651,1.49952946,2400.8,2400.7,0.00624532]
[1725442162955,2.54102094,2400.8,2400.7,0.00624532]
[1725442163155,8.41611564,2400.8,2400.7,0.00624532]
[1725442163350,1.45824,2400.5,2400.4,0.097]
[1725442163553,5.67329852,2400.5,2400.1,0.097]
[1725442163857,0.41672,2400.1,2399.9,0.41674]
[1725442164155,0.3599,2400.0,2399.9,0.41674]
[1725442164353,0.77662,2400.0,2399.8,0.41675]
[1725442164553,0.41674,2399.9,2399.7,3.63081532]
[1725442164757,1.97663,2400.0,2399.7,3.63081532]